fUST/lending_fUST_20241109
["ID","MTS","AMOUNT","RATE_DAILY","PERIOD"]
[341699350,1731101442125,-500.0,0.00026269,2]
[341699351,1731101442134,-500.0,0.00026269,2]
[341699352,1731101442144,-500.0,0.00026269,2]
[341699353,1731101442153,-500.0,0.00026269,2]
[341699354,1731101442163,-500.0,0.00026269,2]
[341699355,1731101442173,-500.0,0.00026269,2]
[341699356,1731101442183,-500.0,0.00026269,2]
[341699357,1731101442192,-500.0,0.00026269,2]
[341699358,1731101442201,-500.0,0.00026273,2]
[341699359,1731101442210,-676.06,0.00026303,2]
[341699360,1731101442329,-3082.36056465,0.00026479,2]
[341699361,1731101442340,-500.0,0.00026542,2]
[341699362,1731101442350,-303.50735789,0.00026542,2]
[341699363,1731101442359,-500.0,0.00026542,2]
[341699364,1731101442368,-500.0,0.00026542,2]
[341699365,1731101442379,-500.0,0.00026542,2]
[341699366,1731101442390,-500.0,0.00026542,2]
[341699367,1731101442400,-500.0,0.00026542,2]
[341699368,1731101442410,-506.93896937,0.00026542,2]
[341699369,1731101442419,-500.0,0.00026542,2]
[341699370,1731101442429,-500.0,0.00026542,2]
[341699371,1731101442438,-1973.73,0.00026542,2]
[341699372,1731101442449,-500.0,0.00026542,2]
[341699373,1731101442458,-8093.77,0.00026542,2]
[341699374,1731101442467,-500.0,0.00026542,2]
[341699375,1731101442477,-216.98936677,0.00026542,2]
[341699376,1731101442488,-848.46,0.00026542,2]
[341699377,1731101442497,-5167.66,0.00026542,2]
[341699378,1731101442507,-500.0,0.00026542,2]
[341699379,1731101442516,-500.0,0.00026542,2]
[341699380,1731101442525,-950.36,0.00026542,2]
[341699381,1731101442534,-500.0,0.00026542,2]
[341699382,1731101442545,-436.89,0.00026542,2]
[341699383,1731101442555,-500.0,0.00026542,2]
[341699384,1731101442565,-500.0,0.00026542,2]
[341699385,1731101442573,-500.0,0.00026542,2]
[341699386,1731101442583,-500.0,0.00026542,2]
[341699387,1731101442592,-500.0,0.00026542,2]
[341699388,1731101442602,-500.0,0.00026542,2]
[341699389,1731101442612,-500.0,0.00026542,2]
[341699390,1731101442622,-578.17,0.00026542,2]
[341699391,1731101442631,-500.0,0.00026542,2]
[341699392,1731101442640,-500.0,0.00026542,2]
[341699393,1731101442650,-327.66530371,0.00026542,2]
[341699395,1731101442659,-586.12787329,0.00026543,2]
[341699396,1731101442668,-500.0,0.00026543,2]
[341699397,1731101442677,-500.0,0.00026543,2]
[341699398,1731101442687,-500.0,0.00026543,2]
[341699399,1731101442696,-500.0,0.00026543,2]
[341699400,1731101442705,-500.0,0.00026543,2]
[341699401,1731101442715,-500.0,0.00026543,2]
[341699402,1731101442724,-500.0,0.00026543,2]
[341699403,1731101442734,-500.0,0.00026543,2]
[341699404,1731101442744,-500.0,0.00026543,2]
[341699405,1731101442754,-500.0,0.00026543,2]
[341699406,1731101442763,-500.0,0.00026543,2]
[341699408,1731101442772,-500.0,0.00026543,2]
[341699409,1731101442781,-500.0,0.00026543,2]
[341699410,1731101442790,-500.0,0.00026543,2]
[341699411,1731101442800,-970.0,0.00026544,30]
[341699412,1731101442809,-970.0,0.00026544,30]
[341699413,1731101442818,-970.0,0.00026544,30]
[341699414,1731101442827,-970.0,0.00026544,30]
[341699415,1731101442836,-970.0,0.00026544,30]
[341699416,1731101442845,-482.193421,0.00026544,30]
[341699417,1731101442855,-500.0,0.00026574,2]
[341699418,1731101442865,-500.0,0.00026574,2]
[341699419,1731101442874,-676.06,0.00026576,2]
[341699420,1731101442883,-500.0,0.00026781,2]
[341699421,1731101442892,-519.46326158,0.00026816,2]
[341699422,1731101442901,-500.0,0.00026816,2]
[341699423,1731101442910,-500.0,0.00026816,2]
[341699424,1731101442919,-500.0,0.00026816,2]
[341699426,1731101442928,-500.0,0.00026816,2]
[341699428,1731101442938,-500.0,0.00026816,2]
[341699429,1731101442946,-1973.73,0.00026816,2]
[341699430,1731101442956,-500.0,0.00026816,2]
[341699431,1731101442965,-8093.77,0.00026816,2]
[341699432,1731101442974,-500.0,0.00026816,2]
[341699433,1731101442983,-848.46,0.00026816,2]
[341699434,1731101442993,-5167.66,0.00026816,2]
[341699435,1731101443003,-500.0,0.00026816,2]
[341699436,1731101443012,-500.0,0.00026816,2]
[341699437,1731101443022,-950.36,0.00026816,2]
[341699438,1731101443031,-500.0,0.00026816,2]
[341699439,1731101443040,-500.0,0.00026816,2]
[341699440,1731101443049,-500.0,0.00026816,2]
[341699441,1731101443058,-500.0,0.00026816,2]
[341699442,1731101443067,-500.0,0.00026816,2]
[341699443,1731101443076,-500.0,0.00026816,2]
[341699444,1731101443085,-500.0,0.00026816,2]
[341699445,1731101443095,-500.0,0.00026816,2]
[341699446,1731101443106,-587.06013441,0.00026816,2]
[341699447,1731101443116,-500.0,0.00026817,2]
[341699448,1731101443125,-500.0,0.00026817,2]
[341699449,1731101443135,-500.0,0.00026817,2]
[341699450,1731101443145,-500.0,0.00026817,2]
[341699451,1731101443154,-500.0,0.00026817,2]
[341699452,1731101443163,-602.35,0.00026817,2]
[341699453,1731101443174,-500.0,0.00026817,2]
[341699454,1731101443183,-500.0,0.00026817,2]
[341699455,1731101443192,-500.0,0.00026817,2]
[341699456,1731101443202,-500.0,0.00026817,2]
[341699457,1731101443211,-500.0,0.00026817,2]
[341699458,1731101443221,-500.0,0.00026817,2]
[341699459,1731101443230,-500.0,0.00026817,2]
[341699460,1731101443240,-500.0,0.00026817,2]
[341699461,1731101443249,-500.0,0.00026832,2]
[341699462,1731101443259,-600.0,0.00026849,2]
[341699463,1731101443269,-676.06,0.0002685,2]
[341699464,1731101443278,-500.0,0.00026956,2]
[341699466,1731101443288,-500.0,0.00026956,2]
[341699468,1731101443298,-500.0,0.00026956,2]
[341699470,1731101443307,-500.0,0.00026956,2]
[341699471,1731101443317,-500.0,0.00026956,2]
[341699472,1731101443327,-500.0,0.00026956,2]
[341699473,1731101443336,-500.0,0.00026956,2]
[341699474,1731101443346,-486.92443171,0.00026956,2]
[341699475,1731101443355,-235.07084465,0.00026956,2]
[341699476,1731101443364,-500.0,0.00026956,2]
[341699477,1731101443374,-500.0,0.00026956,2]
[341699478,1731101443384,-500.0,0.00026956,2]
[341699479,1731101443398,-500.0,0.00026956,2]
[341699480,1731101443408,-659.67,0.00026956,2]
[341699481,1731101443417,-500.0,0.00026956,2]
[341699482,1731101443426,-500.0,0.00026956,2]
[341699483,1731101443436,-500.0,0.00026956,2]
[341699484,1731101443445,-609.54815637,0.00026956,2]
[341699485,1731101443457,-500.0,0.00026956,2]
[341699486,1731101443467,-500.0,0.00026956,2]
[341699487,1731101443476,-500.0,0.00026956,2]
[341699488,1731101443486,-274568.34181436,0.00027,2]
[341699489,1731101443496,-1552.78,0.00027,14]
[341699490,1731101443505,-397.27380945,0.0002709,2]
[341699491,1731101443515,-500.0,0.0002709,2]
[341699492,1731101443525,-631.60216647,0.0002709,2]
[341699493,1731101443534,-225.68713402,0.0002709,2]
[341699494,1731101443544,-500.0,0.0002709,2]
[341699495,1731101443553,-1973.73,0.0002709,2]
[341699496,1731101443563,-500.0,0.0002709,2]
[341699497,1731101443572,-8093.77,0.0002709,2]
[341699498,1731101443581,-500.0,0.0002709,2]
[341699499,1731101443590,-848.46,0.0002709,2]
[341699500,1731101443599,-5167.66,0.0002709,2]
[341699502,1731101443609,-500.0,0.0002709,2]
[341699504,1731101443618,-500.0,0.0002709,2]
[341699506,1731101443627,-950.36,0.0002709,2]
[341699508,1731101443639,-500.0,0.0002709,2]
[341699510,1731101443649,-500.0,0.0002709,2]
[341699512,1731101443659,-500.0,0.0002709,2]
[341699513,1731101443668,-500.0,0.0002709,2]
[341699514,1731101443679,-500.0,0.0002709,2]
[341699515,1731101443690,-500.0,0.0002709,2]
[341699516,1731101443700,-500.0,0.0002709,2]
[341699517,1731101443710,-500.0,0.0002709,2]
[341699518,1731101443720,-536.38029989,0.00027091,2]
[341699519,1731101443729,-500.0,0.00027091,2]
[341699520,1731101443739,-500.0,0.00027091,2]
[341699521,1731101443749,-500.0,0.00027091,2]
[341699522,1731101443758,-576.91,0.00027091,2]
[341699523,1731101443768,-500.0,0.00027091,2]
[341699524,1731101443777,-500.0,0.00027091,2]
[341699525,1731101443787,-500.0,0.00027091,2]
[341699526,1731101443796,-500.0,0.00027091,2]
[341699527,1731101443805,-500.0,0.00027091,2]
[341699528,1731101443816,-500.0,0.00027091,2]
[341699529,1731101443826,-500.0,0.00027091,2]
[341699530,1731101443835,-500.0,0.00027091,2]
[341699531,1731101443844,-676.06,0.00027124,2]
[341699532,1731101443854,-201.817919,0.00027142,2]
[341699533,1731101443863,-444.715803,0.00027142,2]
[341699534,1731101443873,-434.829408,0.00027142,2]
[341699535,1731101443881,-500.0,0.00027171,2]
[341699536,1731101443891,-530.51,0.00027171,2]
[341699537,1731101443901,-509.74377793,0.0002723,2]
[341699538,1731101443912,-500.0,0.0002723,2]
[341699539,1731101443922,-500.0,0.0002723,2]
[341699540,1731101443931,-500.0,0.0002723,2]
[341699541,1731101443941,-500.0,0.0002723,2]
[341699542,1731101443950,-500.0,0.0002723,2]
[341699543,1731101443960,-500.0,0.0002723,2]
[341699544,1731101443969,-659.67,0.0002723,2]
[341699545,1731101443979,-500.0,0.0002723,2]
[341699546,1731101443989,-500.0,0.0002723,2]
[341699547,1731101443998,-1007.5564034,0.00027342,2]
[341699548,1731101444008,-500.0,0.00027342,2]
[341699549,1731101444018,-1000.0,0.00027342,2]
[341699550,1731101444027,-504.95532278,0.00027342,2]
[341699551,1731101444036,-3082.36056465,0.00027343,2]
[341699552,1731101444046,-298.16828806,0.00027364,2]
[341699553,1731101444055,-500.0,0.00027364,2]
[341699554,1731101444065,-1973.73,0.00027364,2]
[341699555,1731101444074,-500.0,0.00027364,2]
[341699556,1731101444084,-8093.77,0.00027364,2]
[341699557,1731101444094,-322.36548605,0.00027364,2]
[341699558,1731101444106,-848.46,0.00027364,2]
[341699559,1731101444115,-5167.66,0.00027364,2]
[341699560,1731101444125,-500.0,0.00027364,2]
[341699561,1731101444134,-500.0,0.00027364,2]
[341699562,1731101444145,-950.36,0.00027364,2]
[341699563,1731101444154,-500.0,0.00027364,2]
[341699564,1731101444164,-500.0,0.00027364,2]
[341699565,1731101444175,-500.0,0.00027364,2]
[341699566,1731101444185,-500.0,0.00027364,2]
[341699567,1731101444194,-500.0,0.00027364,2]
[341699568,1731101444203,-500.0,0.00027364,2]
[341699569,1731101444213,-500.0,0.00027364,2]
[341699570,1731101444222,-500.0,0.00027364,2]
[341699571,1731101444232,-408.40558885,0.00027365,2]
[341699572,1731101444242,-500.0,0.00027365,2]
[341699573,1731101444251,-500.0,0.00027365,2]
[341699574,1731101444261,-500.0,0.00027365,2]
[341699575,1731101444270,-500.0,0.00027365,2]
[341699576,1731101444279,-500.0,0.00027365,2]
[341699577,1731101444289,-500.0,0.00027365,2]
[341699578,1731101444298,-500.0,0.00027365,2]
[341699579,1731101444307,-500.0,0.00027365,2]
[341699580,1731101444317,-394.0,0.00027386,2]
[341699581,1731101444327,-500.0,0.00027397,2]
[341699582,1731101444336,-500.0,0.00027397,2]
[341699583,1731101444346,-500.0,0.00027397,2]
[341699584,1731101444355,-500.0,0.00027397,2]
[341699585,1731101444363,-500.0,0.00027397,2]
[341699586,1731101444373,-500.0,0.00027397,2]
[341699587,1731101444382,-210.33820845,0.00027397,2]
[341699588,1731101444392,-500.0,0.00027397,2]
[341699589,1731101444401,-500.0,0.00027397,2]
[341699590,1731101444411,-500.0,0.00027397,2]
[341699591,1731101444420,-500.0,0.00027397,2]
[341699592,1731101444429,-209.7486119,0.00027397,2]
[341699593,1731101444439,-500.0,0.00027397,2]
[341699594,1731101444450,-500.0,0.00027397,2]
[341699595,1731101444460,-500.0,0.00027397,2]
[341699596,1731101444469,-500.0,0.00027397,2]
[341699597,1731101444479,-500.0,0.00027397,2]
[341699598,1731101444488,-500.0,0.00027397,2]
[341699599,1731101444496,-500.0,0.00027397,2]
[341699600,1731101444505,-151.0,0.00027397,2]
[341699601,1731101444514,-151.0,0.00027397,2]
[341699602,1731101444523,-151.0,0.00027397,2]
[341699603,1731101444532,-676.06,0.00027398,2]
[341699604,1731101444543,-500.0,0.00027445,2]
[341699605,1731101444553,-530.51,0.00027445,2]
[341699606,1731101444562,-444.715803,0.00027482,2]
[341699607,1731101444572,-434.829408,0.00027482,2]
[341699608,1731101444582,-635.68649334,0.00027504,2]
[341699609,1731101444592,-314.22347126,0.00027504,2]
[341699610,1731101444602,-500.0,0.00027504,2]
[341699611,1731101444612,-257.6048748,0.00027504,2]
[341699612,1731101444621,-618.27017854,0.00027504,2]
[341699613,1731101444631,-659.67,0.00027504,2]
[341699614,1731101444642,-500.0,0.00027504,2]
[341699615,1731101444652,-394.0,0.00027616,2]
[341699616,1731101444662,-500.0,0.00027638,2]
[341699617,1731101444672,-1973.73,0.00027638,2]
[341699618,1731101444682,-500.0,0.00027638,2]
[341699619,1731101444691,-8093.77,0.00027638,2]
[341699620,1731101444700,-848.46,0.00027638,2]
[341699621,1731101444710,-5167.66,0.00027638,2]
[341699622,1731101444720,-500.0,0.00027638,2]
[341699623,1731101444729,-500.0,0.00027638,2]
[341699624,1731101444739,-950.36,0.00027638,2]
[341699625,1731101444748,-500.0,0.00027638,2]
[341699626,1731101444758,-500.0,0.00027638,2]
[341699627,1731101444767,-500.0,0.00027638,2]
[341699628,1731101444777,-500.0,0.00027638,2]
[341699629,1731101444787,-500.0,0.00027638,2]
[341699630,1731101444796,-500.0,0.00027638,2]
[341699631,1731101444805,-500.0,0.00027638,2]
[341699632,1731101444816,-500.0,0.00027638,2]
[341699633,1731101444826,-500.0,0.00027639,2]
[341699634,1731101444836,-571.23529606,0.00027639,2]
[341699635,1731101444845,-500.0,0.00027639,2]
[341699636,1731101444854,-355.74401985,0.00027639,2]
[341699637,1731101444864,-500.0,0.00027639,2]
[341699638,1731101444873,-500.0,0.00027639,2]
[341699639,1731101444883,-500.0,0.00027639,2]
[341699640,1731101444893,-500.0,0.00027639,2]
[341699641,1731101444903,-676.06,0.00027672,2]
[341699642,1731101444912,-500.0,0.00027719,2]
[341699643,1731101444922,-530.51,0.00027719,2]
[341699644,1731101444932,-500.0,0.00027778,2]
[341699645,1731101444942,-659.67,0.00027778,2]
[341699646,1731101444952,-500.0,0.00027778,2]
[341699647,1731101444962,-444.715803,0.00027821,2]
[341699648,1731101444972,-434.829408,0.00027821,2]
[341699649,1731101444982,-500.0,0.00027912,2]
[341699650,1731101444991,-1973.73,0.00027912,2]
[341699651,1731101445001,-500.0,0.00027912,2]
[341699652,1731101445011,-8093.77,0.00027912,2]
[341699653,1731101445020,-848.46,0.00027912,2]
[341699654,1731101445029,-5167.66,0.00027912,2]
[341699655,1731101445039,-500.0,0.00027912,2]
[341699656,1731101445048,-500.0,0.00027912,2]
[341699657,1731101445057,-950.36,0.00027912,2]
[341699658,1731101445067,-500.0,0.00027912,2]
[341699659,1731101445077,-500.0,0.00027912,2]
[341699660,1731101445086,-500.0,0.00027912,2]
[341699661,1731101445097,-500.0,0.00027912,2]
[341699662,1731101445108,-500.0,0.00027912,2]
[341699663,1731101445117,-500.0,0.00027912,2]
[341699664,1731101445128,-500.0,0.00027912,2]
[341699665,1731101445138,-500.0,0.00027912,2]
[341699666,1731101445148,-500.0,0.00027913,2]
[341699667,1731101445158,-500.0,0.00027913,2]
[341699668,1731101445169,-500.0,0.00027913,2]
[341699669,1731101445178,-500.0,0.00027913,2]
[341699670,1731101445188,-500.0,0.00027913,2]
[341699671,1731101445198,-152.0,0.00027913,2]
[341699672,1731101445207,-676.06,0.00027946,2]
[341699673,1731101445216,-31929.95873882,0.0002799,2]
[341699674,1731101445226,-500.0,0.00027993,2]
[341699675,1731101445236,-530.51,0.00027993,2]
[341699676,1731101445246,-587.0,0.00028041,2]
[341699677,1731101445255,-500.0,0.0002805,5]
[341699678,1731101445266,-500.0,0.00028052,2]
[341699679,1731101445275,-659.67,0.00028052,2]
[341699680,1731101445286,-500.0,0.00028052,2]
[341699681,1731101445296,-1000.0,0.00028151,2]
[341699682,1731101445306,-444.715803,0.0002816,2]
[341699683,1731101445317,-434.829408,0.0002816,2]
[341699684,1731101445326,-500.0,0.00028186,2]
[341699685,1731101445335,-1973.73,0.00028186,2]
[341699686,1731101445345,-500.0,0.00028186,2]
[341699687,1731101445355,-8093.77,0.00028186,2]
[341699688,1731101445364,-848.46,0.00028186,2]
[341699689,1731101445374,-5167.66,0.00028186,2]
[341699690,1731101445384,-500.0,0.00028186,2]
[341699691,1731101445394,-500.0,0.00028186,2]
[341699692,1731101445403,-950.36,0.00028186,2]
[341699693,1731101445413,-500.0,0.00028186,2]
[341699694,1731101445422,-500.0,0.00028186,2]
[341699695,1731101445432,-500.0,0.00028186,2]
[341699696,1731101445549,-500.0,0.00028186,2]
[341699697,1731101445578,-500.0,0.00028186,2]
[341699698,1731101445588,-500.0,0.00028186,2]
[341699699,1731101445599,-500.0,0.00028186,2]
[341699700,1731101445609,-500.0,0.00028186,2]
[341699701,1731101445619,-500.0,0.00028187,2]
[341699702,1731101445628,-500.0,0.00028187,2]
[341699703,1731101445639,-500.0,0.00028187,2]
[341699704,1731101445649,-500.0,0.00028187,2]
[341699705,1731101445658,-500.0,0.00028187,2]
[341699706,1731101445668,-1552.78,0.000282,14]
[341699707,1731101445677,-3082.36056465,0.00028206,2]
[341699708,1731101445687,-676.06,0.0002822,2]
[341699709,1731101445697,-500.0,0.00028267,2]
[341699710,1731101445707,-530.51,0.00028267,2]
[341699711,1731101445717,-500.0,0.00028326,2]
[341699712,1731101445727,-659.67,0.00028326,2]
[341699713,1731101445737,-500.0,0.00028326,2]
[341699714,1731101445747,-500.0,0.00028377,5]
[341699715,1731101445758,-500.0,0.00028377,5]
[341699716,1731101445769,-1158.49,0.000284,30]
[341699717,1731101445779,-771.65,0.000284,14]
[341699718,1731101445791,-1973.73,0.0002846,2]
[341699719,1731101445802,-500.0,0.0002846,2]
[341699720,1731101445813,-8093.77,0.0002846,2]
[341699721,1731101445825,-848.46,0.0002846,2]
[341699722,1731101445836,-5167.66,0.0002846,2]
[341699723,1731101445847,-500.0,0.0002846,2]
[341699724,1731101445858,-500.0,0.0002846,2]
[341699725,1731101445869,-950.36,0.0002846,2]
[341699726,1731101445880,-500.0,0.0002846,2]
[341699727,1731101445891,-500.0,0.0002846,2]
[341699728,1731101445902,-500.0,0.0002846,2]
[341699729,1731101445912,-500.0,0.0002846,2]
[341699730,1731101445923,-500.0,0.0002846,2]
[341699731,1731101445933,-500.0,0.0002846,2]
[341699732,1731101445943,-500.0,0.0002846,2]
[341699733,1731101445958,-500.0,0.0002846,2]
[341699734,1731101445968,-500.0,0.00028461,2]
[341699735,1731101445978,-500.0,0.00028461,2]
[341699736,1731101445990,-500.0,0.00028461,2]
[341699737,1731101446001,-500.0,0.00028461,2]
[341699738,1731101446012,-500.0,0.00028461,2]
[341699739,1731101446022,-676.06,0.00028494,2]
[341699740,1731101446032,-11964.45190995,0.00028498,2]
[341699741,1731101446042,-201.817919,0.000285,2]
[341699742,1731101446052,-444.715803,0.000285,2]
[341699743,1731101446062,-434.829408,0.000285,2]
[341699744,1731101446073,-500.0,0.00028541,2]
[341699745,1731101446083,-530.51,0.00028541,2]
[341699746,1731101446092,-159.101,0.0002858,2]
[341699747,1731101446105,-501.21651174,0.000286,2]
[341699748,1731101446115,-659.67,0.000286,2]
[341699749,1731101446126,-500.0,0.000286,2]
[341699750,1731101446135,-1973.73,0.00028734,2]
[341699751,1731101446147,-500.0,0.00028734,2]
[341699752,1731101446158,-8093.77,0.00028734,2]
[341699753,1731101446167,-848.46,0.00028734,2]
[341699754,1731101446177,-5167.66,0.00028734,2]
[341699755,1731101446188,-500.0,0.00028734,2]
[341699756,1731101446198,-500.0,0.00028734,2]
[341699757,1731101446208,-950.36,0.00028734,2]
[341699758,1731101446218,-481.42,0.00028734,2]
[341699759,1731101446230,-212.78,0.00028734,2]
[341699760,1731101446239,-500.0,0.00028734,2]
[341699761,1731101446250,-500.0,0.00028734,2]
[341699762,1731101446261,-294.58,0.00028734,2]
[341699763,1731101446271,-500.0,0.00028734,2]
[341699764,1731101446282,-500.0,0.00028734,2]
[341699765,1731101446291,-500.0,0.00028734,2]
[341699766,1731101446301,-214.93,0.00028735,2]
[341699767,1731101446311,-500.0,0.00028735,2]
[341699768,1731101446321,-500.0,0.00028735,2]
[341699769,1731101446331,-500.0,0.00028735,2]
[341699770,1731101446341,-500.0,0.00028735,2]
[341699771,1731101446350,-676.06,0.00028768,2]
[341699772,1731101446360,-500.0,0.00028815,2]
[341699773,1731101446369,-530.51,0.00028815,2]
[341699774,1731101446379,-1138.0,0.0002882,2]
[341699775,1731101446390,-529.0,0.0002882,2]
[341699776,1731101446400,-2394.0,0.0002882,2]
[341699777,1731101446411,-587.0,0.00028842,2]
[341699778,1731101446421,-151.43699562,0.00028872,2]
[341699779,1731101446430,-659.67,0.00028874,2]
[341699780,1731101446440,-500.0,0.00028874,2]
[341699781,1731101446449,-1000.0,0.00028899,2]
[341699782,1731101446459,-600.0,0.00028932,2]
[341699783,1731101446469,-394.0,0.00028997,2]
[341699784,1731101446479,-170.0,0.00028997,2]
[341699785,1731101446488,-1973.73,0.00029008,2]
[341699786,1731101446498,-500.0,0.00029008,2]
[341699787,1731101446509,-8093.77,0.00029008,2]
[341699788,1731101446518,-848.46,0.00029008,2]
[341699789,1731101446528,-5167.66,0.00029008,2]
[341699790,1731101446538,-500.0,0.00029008,2]
[341699791,1731101446547,-500.0,0.00029008,2]
[341699792,1731101446557,-950.36,0.00029008,2]
[341699793,1731101446567,-501.95528505,0.00029008,2]
[341699794,1731101446577,-500.0,0.00029008,2]
[341699795,1731101446586,-500.0,0.00029008,2]
[341699796,1731101446597,-500.0,0.00029008,2]
[341699797,1731101446606,-500.0,0.00029008,2]
[341699798,1731101446615,-500.0,0.00029009,2]
[341699799,1731101446624,-321.49,0.00029009,2]
[341699800,1731101446632,-500.0,0.00029009,2]
[341699801,1731101446643,-420.35,0.00029009,2]
[341699802,1731101446652,-676.06,0.00029042,2]
[341699803,1731101446661,-3082.36056465,0.00029069,2]
[341699804,1731101446670,-500.0,0.00029089,2]
[341699805,1731101446679,-530.51,0.00029089,2]
[341699806,1731101446688,-659.67,0.00029148,2]
[341699807,1731101446698,-500.0,0.0002918,2]
[341699808,1731101446707,-782.04831157,0.00029182,2]
[341699809,1731101446716,-1070.99126672,0.00029233,2]
[341699810,1731101446725,-1973.73,0.00029282,2]
[341699811,1731101446733,-500.0,0.00029282,2]
[341699812,1731101446742,-8093.77,0.00029282,2]
[341699813,1731101446751,-848.46,0.00029282,2]
[341699814,1731101446760,-5167.66,0.00029282,2]
[341699816,1731101446769,-500.0,0.00029282,2]
[341699818,1731101446778,-500.0,0.00029282,2]
[341699820,1731101446787,-950.36,0.00029282,2]
[341699822,1731101446797,-459.81829591,0.00029282,2]
[341699824,1731101446806,-500.0,0.00029282,2]
[341699826,1731101446815,-500.0,0.00029282,2]
[341699828,1731101446825,-500.0,0.00029282,2]
[341699829,1731101446834,-500.0,0.00029283,2]
[341699831,1731101446843,-313.12667856,0.00029283,2]
[341699833,1731101446852,-422.5912586,0.00029288,30]
[341699836,1731101446864,-153.0,0.00029288,30]
[341699838,1731101446873,-374.8183344,0.00029288,30]
[341699839,1731101446882,-153.0,0.00029288,30]
[341699842,1731101446895,-454.6445892,0.00029288,30]
[341699843,1731101446905,-303.5547214,0.00029288,30]
[341699845,1731101446914,-153.0,0.00029288,30]
[341699847,1731101446924,-153.0,0.00029288,30]
[341699849,1731101446934,-153.0,0.00029288,30]
[341699850,1731101446944,-153.0,0.00029288,30]
[341699851,1731101446954,-676.06,0.00029316,2]
[341699852,1731101446964,-500.0,0.00029363,2]
[341699853,1731101446974,-530.51,0.00029363,2]
[341699854,1731101446984,-159.061,0.00029373,120]
[341699855,1731101446994,-150.112233,0.000294,19]
[341699856,1731101447004,-1000.0,0.0002942,5]
[341699858,1731101447014,-659.67,0.00029422,2]
[341699859,1731101447024,-683.32007268,0.00029423,2]
[341699860,1731101447034,-782.04831152,0.00029457,2]
[341699861,1731101447044,-1552.78,0.000295,14]
[341699862,1731101447053,-500.0,0.00029531,2]
[341699863,1731101447063,-1973.73,0.00029556,2]
[341699864,1731101447072,-500.0,0.00029556,2]
[341699865,1731101447081,-8093.77,0.00029556,2]
[341699866,1731101447090,-848.46,0.00029556,2]
[341699867,1731101447101,-5167.66,0.00029556,2]
[341699868,1731101447111,-646.8,0.00029556,2]
[341699869,1731101447120,-467.00930687,0.00029556,2]
[341699870,1731101447129,-950.36,0.00029556,2]
[341699871,1731101447140,-500.0,0.00029556,2]
[341699872,1731101447151,-500.0,0.00029556,2]
[341699873,1731101447159,-500.0,0.00029556,2]
[341699874,1731101447169,-500.0,0.00029557,2]
[341699875,1731101447179,-1000.0,0.0002958,2]
[341699876,1731101447188,-600.0,0.00029589,4]
[341699877,1731101447197,-676.06,0.0002959,2]
[341699878,1731101447207,-1158.49,0.000296,30]
[341699879,1731101447216,-771.65,0.000296,14]
[341699880,1731101447225,-500.0,0.00029637,2]